[Event "Wuerttemberg Rapid Teams 2024"]
[Site "B?blingen, Germany"]
[Date "2024.04.13"]
[Round "5.35"]
[White "Hadziselimovic, Adnan"]
[Black "Schraegle, Thorsten"]
[Result "1-0"]
[ECO "E09"]
[WhiteElo "2053"]
[BlackElo "1918"]
[Annotator "NA RC"]
[PlyCount "100"]
[EventDate "2024.04.13"]
[EventType "team-tourn"]
[SourceTitle "playchess.com"]
[Source "ChessBase"]
[SourceQuality "1"]
[TimeControl "900+5"]

1. c4 {[%emt 0:00:01]} e6 {[%emt 0:00:02]} 2. g3 {[%emt 0:00:03]} d5 {[%emt 0:00:01]} 3. d4 {[%emt 0:00:00]} Nf6 {[%emt 0:00:05]} 4. Bg2 {[%emt 0:00:02]} Bb4+ {[%emt 0:00:04]} 5. Bd2 {[%emt 0:00:05]} Be7 {[%emt 0:00:01]} 6. Nf3 {[%emt 0:00:03]} O-O {[%emt 0:00:02]} 7. O-O {[%emt 0:00:02]} c6 {[%emt 0:00:35]} 8. Nc3 {[%emt 0:00:07]} b6 {[%emt 0:02:06]} 9. Qc2 {[%emt 0:00:02]} Nbd7 {[%emt 0:01:18]} 10. e4 {[%emt 0:00:02]} dxe4 {[%emt 0:00:19]} 11. Nxe4 {[%emt 0:00:02]} Nxe4 {[%emt 0:00:14]} 12. Qxe4 {[%emt 0:00:02]} Bb7 {[%emt 0:00:01]} 13. Bf4 {[%emt 0:01:23]} Nf6 {[%emt 0:00:13]} 14. Qd3 {[%emt 0:00:19]} c5 {[%emt 0:00:08]} 15. Rad1 {[%emt 0:01:01]} cxd4 {[%emt 0:00:12]} 16. Qxd4 {[%emt 0:00:12]} Bc5 {[%emt 0:00:36]} 17. Qc3 {[%emt 0:00:42]} Qe7 {[%emt 0:00:23]} 18. Bg5 {[%emt 0:00:27]} h6 {[%emt 0:00:52]} 19. Bxf6 {[%emt 0:00:02]} Qxf6 {[%emt 0:00:01]} 20. Qxf6 {[%emt 0:00:01]} gxf6 {[%emt 0:00:02]} 21. Rd7 {[%emt 0:00:02]} Bc6 {[%emt 0:00:00]} 22. Rd3 {[%emt 0:00:38]} Be4 {[%emt 0:00:34]} 23. Rdd1 {[%emt 0:00:18]} Rfd8 {[%emt 0:00:09]} 24. Nd2 {[%emt 0:00:25]} Bxg2 {[%emt 0:00:27]} 25. Kxg2 {[%emt 0:00:01]} Rd4 {[%emt 0:00:09]} 26. Nb3 {[%emt 0:00:42]} Rxc4 {[%emt 0:00:02]} 27. Rd7 {[%emt 0:00:14]} b5 {[%emt 0:03:23]} 28. Rb7 {[%emt 0:00:44]} Bb6 {[%emt 0:00:09]} 29. Rd1 {[%emt 0:02:18]} Rc2 {[%emt 0:00:01]} 30. Rd2 {[%emt 0:00:00]} Rac8 {[%emt 0:00:16]} 31. Rbd7 {[%emt 0:00:29]} Kf8 {[%emt 0:00:21]} 32. Rxc2 {[%emt 0:00:05]} Rxc2 {[%emt 0:00:03]} 33. Rd2 {[%emt 0:00:01]} Rc4 {[%emt 0:00:40]} 34. Kf3 {[%emt 0:00:16]} Ke7 {[%emt 0:00:01]} 35. Rd3 {[%emt 0:00:06]} Rc2 {[%emt 0:00:11]} 36. Rd2 {[%emt 0:00:02]} Rc4 {[%emt 0:00:01]} 37. Rd3 {[%emt 0:00:11]} a5 {[%emt 0:00:01]} 38. a3 {[%emt 0:00:21]} a4 {[%emt 0:00:33]} 39. Nd2 {[%emt 0:00:02]} Rc2 {[%emt 0:00:00]} 40. Ke2 {[%emt 0:02:18]} Rxb2 {[%emt 0:00:16]} 41. f4 {[%emt 0:00:06]} Ba5 {[%emt 0:00:00]} 42. Ke3 {[%emt 0:00:05]} Bxd2+ {[%emt 0:00:04]} 43. Rxd2 {[%emt 0:00:02]} Rxd2 {[%emt 0:00:01]} 44. Kxd2 {[%emt 0:00:01]} Kd6 {[%emt 0:00:01]} 45. Kd3 {[%emt 0:00:01]} Kd5 {[%emt 0:00:00]} 46. Kc3 {[%emt 0:00:02]} Kc5 {[%emt 0:00:01]} 47. g4 {[%emt 0:00:04]} e5 {[%emt 0:00:01]} 48. f5 {[%emt 0:00:43]} e4 {[%emt 0:00:01]} 49. h4 {[%emt 0:00:01]} e3 {[%emt 0:00:06]} 50. g5 {[%emt 0:00:03]} fxg5 {[%emt 0:00:10]} 1-0

[Event "Wuerttemberg Rapid Teams 2024"]
[Site "B?blingen, Germany"]
[Date "2024.04.13"]
[Round "5.36"]
[White "Guenter, Alexander"]
[Black "Valchev, Martin V"]
[Result "1-0"]
[ECO "A05"]
[WhiteElo "1997"]
[BlackElo "1529"]
[Annotator "NA RC"]
[PlyCount "95"]
[EventDate "2024.04.13"]
[EventType "team-tourn"]
[SourceTitle "playchess.com"]
[Source "ChessBase"]
[SourceQuality "1"]
[TimeControl "900+5"]

1. Nf3 {[%emt 0:00:04]} Nf6 {[%emt 0:00:02]} 2. g3 {[%emt 0:00:01]} b5 {[%emt 0:00:08]} 3. Bg2 {[%emt 0:00:02]} Nc6 {[%emt 0:00:09]} 4. O-O {[%emt 0:00:05]} Bb7 {[%emt 0:00:12]} 5. c3 {[%emt 0:00:02]} d5 {[%emt 0:00:52]} 6. d4 {[%emt 0:00:02]} e6 {[%emt 0:00:06]} 7. Bg5 {[%emt 0:00:07]} Be7 {[%emt 0:00:04]} 8. Nbd2 {[%emt 0:00:03]} Ne4 {[%emt 0:00:39]} 9. Bxe7 {[%emt 0:00:03]} Nxe7 {[%emt 0:00:11]} 10. Ne5 {[%emt 0:00:14]} f6 {[%emt 0:00:27]} 11. Nd3 {[%emt 0:00:05]} Qd6 {[%emt 0:00:43]} 12. f3 {[%emt 0:00:25]} Nxd2 {[%emt 0:00:20]} 13. Qxd2 {[%emt 0:00:02]} e5 {[%emt 0:00:40]} 14. Nc5 {[%emt 0:00:12]} Bc8 {[%emt 0:00:16]} 15. e3 {[%emt 0:00:04]} O-O {[%emt 0:00:12]} 16. Rae1 {[%emt 0:00:14]} Rb8 {[%emt 0:00:44]} 17. b4 {[%emt 0:00:03]} Nc6 {[%emt 0:00:26]} 18. a3 {[%emt 0:01:11]} Bf5 {[%emt 0:01:02]} 19. e4 {[%emt 0:00:09]} dxe4 {[%emt 0:00:18]} 20. fxe4 {[%emt 0:00:02]} Bg4 {[%emt 0:00:43]} 21. d5 {[%emt 0:00:03]} Ne7 {[%emt 0:00:33]} 22. h3 {[%emt 0:00:04]} Bc8 {[%emt 0:00:20]} 23. Qe3 {[%emt 0:00:19]} c6 {[%emt 0:01:05]} 24. Rd1 {[%emt 0:00:11]} cxd5 {[%emt 0:00:08]} 25. exd5 {[%emt 0:00:03]} f5 {[%emt 0:00:22]} 26. Rfe1 {[%emt 0:00:29]} Ng6 {[%emt 0:00:13]} 27. Nd3 {[%emt 0:00:46]} e4 {[%emt 0:00:14]} 28. Nf4 {[%emt 0:00:05]} Ne5 {[%emt 0:00:27]} 29. Qxa7 {[%emt 0:00:22]} Qb6+ {[%emt 0:00:19]} 30. Qxb6 {[%emt 0:00:03]} Rxb6 {[%emt 0:00:02]} 31. Ne2 {[%emt 0:01:00]} Bd7 {[%emt 0:00:15]} 32. Nd4 {[%emt 0:00:04]} Ra8 {[%emt 0:00:16]} 33. Nc2 {[%emt 0:00:15]} Nc4 {[%emt 0:00:44]} 34. g4 {[%emt 0:00:21]} Nxa3 {[%emt 0:00:33]} 35. Nd4 {[%emt 0:00:17]} fxg4 {[%emt 0:00:53]} 36. hxg4 {[%emt 0:00:01]} Bxg4 {[%emt 0:00:07]} 37. Ra1 {[%emt 0:00:01]} Rba6 {[%emt 0:00:13]} 38. Bxe4 {[%emt 0:00:02]} Nc4 {[%emt 0:00:11]} 39. Rxa6 {[%emt 0:00:03]} Rxa6 {[%emt 0:00:01]} 40. Nxb5 {[%emt 0:00:15]} Ra2 {[%emt 0:00:18]} 41. d6 {[%emt 0:00:36]} Rd2 {[%emt 0:00:11]} 42. Nd4 {[%emt 0:00:38]} Nxd6 {[%emt 0:00:11]} 43. Bd5+ {[%emt 0:00:05]} Kf8 {[%emt 0:00:06]} 44. b5 {[%emt 0:00:17]} Rb2 {[%emt 0:00:21]} 45. Bc6 {[%emt 0:00:10]} Nc4 {[%emt 0:00:15]} 46. Re8+ {[%emt 0:00:50]} Kf7 {[%emt 0:00:01]} 47. Re4 {[%emt 0:00:02]} h5 {[%emt 0:00:21]} 48. Bd5+ {[%emt 0:00:03]} 1-0

[Event "Wuerttemberg Rapid Teams 2024"]
[Site "B?blingen, Germany"]
[Date "2024.04.13"]
[Round "5.37"]
[White "Strathmann, Sacha"]
[Black "Abel, Manfred"]
[Result "1-0"]
[ECO "B50"]
[WhiteElo "2125"]
[BlackElo "1881"]
[Annotator "RC"]
[PlyCount "93"]
[EventDate "2024.04.13"]
[EventType "team-tourn"]
[SourceTitle "playchess.com"]
[Source "ChessBase"]
[SourceQuality "1"]
[TimeControl "900+5"]

1. e4 {[%emt 0:00:03]} c5 {[%emt 0:00:07]} 2. Nf3 {[%emt 0:00:02]} d6 {[%emt 0:00:05]} 3. Nc3 {[%emt 0:00:01]} Nf6 {[%emt 0:00:04]} 4. e5 {[%emt 0:00:02]} dxe5 {[%emt 0:00:17]} 5. Nxe5 {[%emt 0:00:02]} a6 {[%emt 0:00:19]} 6. g3 {[%emt 0:00:02]} Nbd7 {[%emt 0:00:06]} 7. d4 {[%emt 0:00:02]} e6 {[%emt 0:00:34]} 8. Bf4 {[%emt 0:01:32]} cxd4 {[%emt 0:00:13]} 9. Qxd4 {[%emt 0:00:02]} Bc5 {[%emt 0:00:04]} 10. Qa4 {[%emt 0:00:32]} O-O {[%emt 0:00:09]} 11. O-O-O {[%emt 0:00:03]} Qb6 {[%emt 0:00:17]} 12. Bg2 {[%emt 0:01:16]} Bxf2 {[%emt 0:00:28]} 13. Kb1 {[%emt 0:00:14]} Bc5 {[%emt 0:00:24]} 14. Rhf1 {[%emt 0:00:28]} Bb4 {[%emt 0:00:11]} 15. Nc4 {[%emt 0:03:09]} Qc5 {[%emt 0:00:48]} 16. Bd6 {[%emt 0:00:44]} Qxc4 {[%emt 0:01:18]} 17. Rf4 {[%emt 0:00:38]} Qxf4 {[%emt 0:01:46]} 18. gxf4 {[%emt 0:00:07]} Bxd6 {[%emt 0:00:16]} 19. Rxd6 {[%emt 0:00:04]} Rb8 {[%emt 0:00:22]} 20. Qd4 {[%emt 0:00:22]} Rd8 {[%emt 0:00:42]} 21. Ne4 {[%emt 0:00:22]} Nd5 {[%emt 0:00:30]} 22. f5 {[%emt 0:01:40]} b5 {[%emt 0:00:13]} 23. fxe6 {[%emt 0:00:07]} fxe6 {[%emt 0:00:03]} 24. Ng5 {[%emt 0:00:06]} Re8 {[%emt 0:00:28]} 25. Nxe6 {[%emt 0:00:12]} N7f6 {[%emt 0:00:13]} 26. Bxd5 {[%emt 0:00:25]} Nxd5 {[%emt 0:00:22]} 27. Qxd5 {[%emt 0:00:03]} Bb7 {[%emt 0:00:14]} 28. Qe5 {[%emt 0:00:16]} Re7 {[%emt 0:00:07]} 29. b3 {[%emt 0:03:00]} Rbe8 {[%emt 0:00:02]} 30. Qc5 {[%emt 0:00:55]} Rxe6 {[%emt 0:02:17]} 31. Rxe6 {[%emt 0:00:01]} Rxe6 {[%emt 0:00:06]} 32. Qc7 {[%emt 0:00:01]} Be4 {[%emt 0:00:10]} 33. Kb2 {[%emt 0:00:05]} Kf8 {[%emt 0:00:07]} 34. c4 {[%emt 0:00:04]} Re7 {[%emt 0:00:07]} 35. Qb8+ {[%emt 0:00:04]} Kf7 {[%emt 0:00:06]} 36. Qf4+ {[%emt 0:00:03]} Ke8 {[%emt 0:00:19]} 37. cxb5 {[%emt 0:00:02]} axb5 {[%emt 0:00:06]} 38. Qb8+ {[%emt 0:00:02]} Kf7 {[%emt 0:00:02]} 39. Qxb5 {[%emt 0:00:02]} g6 {[%emt 0:00:10]} 40. Qc4+ {[%emt 0:00:03]} Kf6 {[%emt 0:00:04]} 41. a4 {[%emt 0:00:02]} Bf5 {[%emt 0:00:07]} 42. a5 {[%emt 0:00:04]} Be6 {[%emt 0:00:10]} 43. Qd4+ {[%emt 0:00:03]} Kf7 {[%emt 0:00:02]} 44. a6 {[%emt 0:00:01]} Re8 {[%emt 0:00:10]} 45. a7 {[%emt 0:00:03]} Ra8 {[%emt 0:00:15]} 46. Qf4+ {[%emt 0:00:09]} Ke7 {[%emt 0:00:22]} 47. Qc7+ {[%emt 0:00:02]} 1-0

[Event "Wuerttemberg Rapid Teams 2024"]
[Site "B?blingen, Germany"]
[Date "2024.04.13"]
[Round "5.38"]
[White "Forstmann, Oliver"]
[Black "Baur, Frank"]
[Result "0-1"]
[ECO "B33"]
[WhiteElo "1750"]
[BlackElo "2050"]
[Annotator "NA RC"]
[PlyCount "48"]
[EventDate "2024.04.13"]
[EventType "team-tourn"]
[SourceTitle "playchess.com"]
[Source "ChessBase"]
[SourceQuality "1"]
[TimeControl "900+5"]

1. e4 {[%emt 0:00:01]} c5 {[%emt 0:00:17]} 2. Nf3 {[%emt 0:00:02]} Nc6 {[%emt 0:00:01]} 3. d4 {[%emt 0:00:04]} cxd4 {[%emt 0:00:02]} 4. Nxd4 {[%emt 0:00:01]} Nf6 {[%emt 0:00:03]} 5. Nc3 {[%emt 0:00:03]} e5 {[%emt 0:00:02]} 6. Nb3 {[%emt 0:00:30]} Bb4 {[%emt 0:00:17]} 7. Bd3 {[%emt 0:00:08]} d5 {[%emt 0:00:26]} 8. exd5 {[%emt 0:00:59]} Nxd5 {[%emt 0:00:02]} 9. Bd2 {[%emt 0:00:33]} Nxc3 {[%emt 0:00:04]} 10. Bxc3 {[%emt 0:00:30]} Bxc3+ {[%emt 0:00:36]} 11. bxc3 {[%emt 0:00:03]} O-O {[%emt 0:00:28]} 12. O-O {[%emt 0:00:40]} Qe7 {[%emt 0:00:23]} 13. Qe2 {[%emt 0:00:59]} Be6 {[%emt 0:01:13]} 14. Be4 {[%emt 0:02:00]} Nd8 {[%emt 0:05:19]} 15. Qh5 {[%emt 0:01:05]} f5 {[%emt 0:00:35]} 16. Bd3 {[%emt 0:00:30]} Rc8 {[%emt 0:00:16]} 17. c4 {[%emt 0:02:59]} e4 {[%emt 0:00:34]} 18. Be2 {[%emt 0:00:12]} g6 {[%emt 0:00:44]} 19. Qh6 {[%emt 0:00:20]} Bxc4 {[%emt 0:01:11]} 20. Qd2 {[%emt 0:01:26]} Bxe2 {[%emt 0:00:40]} 21. Qxe2 {[%emt 0:00:02]} Ne6 {[%emt 0:01:07]} 22. f3 {[%emt 0:01:10]} Nf4 {[%emt 0:00:24]} 23. Qe3 {[%emt 0:00:20]} Qg5 {[%emt 0:00:06]} 24. Qf2 {[%emt 0:01:12]} e3 {[%emt 0:01:13]} 0-1

[Event "Wuerttemberg Rapid Teams 2024"]
[Site "B?blingen, Germany"]
[Date "2024.04.13"]
[Round "6.1"]
[White "Koelle, Tobias"]
[Black "Kuklin, Valentin"]
[Result "1/2-1/2"]
[ECO "A70"]
[WhiteElo "2467"]
[BlackElo "2367"]
[Annotator "RC"]
[PlyCount "127"]
[EventDate "2024.04.13"]
[EventType "team-tourn"]
[SourceTitle "playchess.com"]
[Source "ChessBase"]
[SourceQuality "1"]
[TimeControl "900+5"]

1. d4 {[%emt 0:00:03]} Nf6 {[%emt 0:00:02]} 2. c4 {[%emt 0:00:02]} c5 {[%emt 0:00:02]} 3. d5 {[%emt 0:00:03]} e6 {[%emt 0:00:03]} 4. Nf3 {[%emt 0:00:03]} exd5 {[%emt 0:00:04]} 5. cxd5 {[%emt 0:00:02]} d6 {[%emt 0:00:02]} 6. Nc3 {[%emt 0:00:05]} g6 {[%emt 0:00:03]} 7. h3 {[%emt 0:00:02]} Bg7 {[%emt 0:00:04]} 8. e4 {[%emt 0:00:01]} O-O {[%emt 0:00:08]} 9. Bd3 {[%emt 0:00:04]} Nh5 {[%emt 0:00:08]} 10. O-O {[%emt 0:00:13]} Nd7 {[%emt 0:00:07]} 11. Bg5 {[%emt 0:00:12]} Bf6 {[%emt 0:00:05]} 12. Be3 {[%emt 0:00:04]} Ne5 {[%emt 0:00:12]} 13. Nxe5 {[%emt 0:00:26]} Bxe5 {[%emt 0:00:02]} 14. f4 {[%emt 0:00:10]} Bg7 {[%emt 0:00:12]} 15. Qf3 {[%emt 0:00:14]} Re8 {[%emt 0:02:28]} 16. Rae1 {[%emt 0:00:13]} a6 {[%emt 0:00:25]} 17. a4 {[%emt 0:00:28]} Rb8 {[%emt 0:00:16]} 18. e5 {[%emt 0:01:12]} dxe5 {[%emt 0:05:12]} 19. fxe5 {[%emt 0:00:01]} Rxe5 {[%emt 0:00:09]} 20. Qxf7+ {[%emt 0:00:13]} Kh8 {[%emt 0:00:01]} 21. Bxc5 {[%emt 0:00:36]} Bd7 {[%emt 0:00:15]} 22. Bd4 {[%emt 0:03:01]} Rxe1 {[%emt 0:00:21]} 23. Bxg7+ {[%emt 0:00:03]} Nxg7 {[%emt 0:00:02]} 24. Rxe1 {[%emt 0:00:01]} Qb6+ {[%emt 0:01:51]} 25. Qf2 {[%emt 0:01:23]} Qb4 {[%emt 0:00:12]} 26. Ne4 {[%emt 0:01:32]} Bxa4 {[%emt 0:01:34]} 27. Ng5 {[%emt 0:01:12]} Rf8 {[%emt 0:00:12]} 28. Re4 {[%emt 0:00:02]} Rxf2 {[%emt 0:00:43]} 29. Rxb4 {[%emt 0:00:04]} Rd2 {[%emt 0:00:02]} 30. Bxa6 {[%emt 0:00:43]} bxa6 {[%emt 0:00:29]} 31. Rxa4 {[%emt 0:00:01]} h6 {[%emt 0:01:00]} 32. Ne4 {[%emt 0:00:23]} Rxd5 {[%emt 0:00:17]} 33. Rxa6 {[%emt 0:00:01]} Nh5 {[%emt 0:00:07]} 34. Rxg6 {[%emt 0:00:10]} Rd1+ {[%emt 0:00:11]} 35. Kh2 {[%emt 0:00:05]} Kh7 {[%emt 0:00:01]} 36. Rb6 {[%emt 0:00:07]} Re1 {[%emt 0:00:06]} 37. Nf6+ {[%emt 0:00:02]} Nxf6 {[%emt 0:00:18]} 38. Rxf6 {[%emt 0:00:01]} Re3 {[%emt 0:00:04]} 39. Rb6 {[%emt 0:00:28]} Rd3 {[%emt 0:00:05]} 40. b4 {[%emt 0:00:04]} Rb3 {[%emt 0:00:04]} 41. b5 {[%emt 0:00:01]} h5 {[%emt 0:00:06]} 42. Kg1 {[%emt 0:00:10]} Rb2 {[%emt 0:00:02]} 43. Rb8 {[%emt 0:00:07]} Kg7 {[%emt 0:00:06]} 44. b6 {[%emt 0:00:01]} Kh7 {[%emt 0:00:06]} 45. g3 {[%emt 0:00:14]} Rb3 {[%emt 0:00:13]} 46. Kf2 {[%emt 0:00:01]} Kg7 {[%emt 0:00:02]} 47. Ke2 {[%emt 0:02:09]} Rxg3 {[%emt 0:00:07]} 48. Rc8 {[%emt 0:00:02]} Rb3 {[%emt 0:00:07]} 49. Rc6 {[%emt 0:00:01]} Rxh3 {[%emt 0:00:14]} 50. Kd2 {[%emt 0:00:28]} Rb3 {[%emt 0:00:02]} 51. Kc2 {[%emt 0:00:01]} Rb5 {[%emt 0:00:02]} 52. Kc3 {[%emt 0:00:04]} h4 {[%emt 0:00:04]} 53. Rc7+ {[%emt 0:00:24]} Kg6 {[%emt 0:00:04]} 54. b7 {[%emt 0:00:06]} h3 {[%emt 0:00:08]} 55. Kd3 {[%emt 0:00:57]} h2 {[%emt 0:00:05]} 56. Rc1 {[%emt 0:00:02]} Rxb7 {[%emt 0:00:04]} 57. Ke3 {[%emt 0:00:09]} Kg5 {[%emt 0:00:05]} 58. Kf3 {[%emt 0:00:05]} Kh4 {[%emt 0:00:11]} 59. Kg2 {[%emt 0:00:01]} Rb2+ {[%emt 0:00:02]} 60. Kh1 {[%emt 0:00:01]} Kh3 {[%emt 0:00:02]} 61. Rc3+ {[%emt 0:00:01]} Kh4 {[%emt 0:00:01]} 62. Rc4+ {[%emt 0:00:01]} Kh3 {[%emt 0:00:01]} 63. Rc3+ {[%emt 0:00:00]} Kh4 {[%emt 0:00:00]} 64. Rc4+ {[%emt 0:00:01]} 1/2-1/2

[Event "Wuerttemberg Rapid Teams 2024"]
[Site "B?blingen, Germany"]
[Date "2024.04.13"]
[Round "6.2"]
[White "Vujic, Branimir"]
[Black "Deuer, Marius"]
[Result "0-1"]
[ECO "D02"]
[WhiteElo "2218"]
[BlackElo "2439"]
[Annotator "RC"]
[PlyCount "82"]
[EventDate "2024.04.13"]
[EventType "team-tourn"]
[SourceTitle "playchess.com"]
[Source "ChessBase"]
[SourceQuality "1"]
[TimeControl "900+5"]

1. d4 {[%emt 0:00:19]} Nf6 {[%emt 0:00:03]} 2. Bf4 {[%emt 0:00:01]} d5 {[%emt 0:00:03]} 3. e3 {[%emt 0:00:02]} e6 {[%emt 0:00:01]} 4. Nf3 {[%emt 0:00:02]} c5 {[%emt 0:00:01]} 5. Nc3 {[%emt 0:00:03]} a6 {[%emt 0:01:03]} 6. dxc5 {[%emt 0:00:03]} Bxc5 {[%emt 0:00:17]} 7. Bd3 {[%emt 0:00:02]} Bd6 {[%emt 0:01:38]} 8. Bxd6 {[%emt 0:00:18]} Qxd6 {[%emt 0:00:02]} 9. O-O {[%emt 0:00:02]} e5 {[%emt 0:00:43]} 10. e4 {[%emt 0:00:30]} d4 {[%emt 0:00:02]} 11. Ne2 {[%emt 0:00:12]} Bg4 {[%emt 0:00:05]} 12. Ng3 {[%emt 0:00:05]} Nc6 {[%emt 0:00:50]} 13. h3 {[%emt 0:00:06]} Bxf3 {[%emt 0:01:09]} 14. Qxf3 {[%emt 0:00:02]} g6 {[%emt 0:00:02]} 15. Bc4 {[%emt 0:00:43]} O-O {[%emt 0:00:03]} 16. Rfd1 {[%emt 0:00:22]} Rad8 {[%emt 0:00:34]} 17. Bb3 {[%emt 0:00:12]} Kg7 {[%emt 0:00:02]} 18. Rd2 {[%emt 0:00:39]} Rd7 {[%emt 0:01:06]} 19. Rad1 {[%emt 0:00:03]} Rfd8 {[%emt 0:00:02]} 20. Ne2 {[%emt 0:01:23]} b5 {[%emt 0:00:54]} 21. c3 {[%emt 0:00:07]} Qc5 {[%emt 0:00:55]} 22. Nc1 {[%emt 0:02:08]} Na5 {[%emt 0:01:27]} 23. Ne2 {[%emt 0:02:02]} Nxb3 {[%emt 0:02:10]} 24. axb3 {[%emt 0:00:04]} Qc6 {[%emt 0:00:01]} 25. Ng3 {[%emt 0:00:34]} dxc3 {[%emt 0:00:29]} 26. Rxd7 {[%emt 0:00:04]} Rxd7 {[%emt 0:00:01]} 27. Rxd7 {[%emt 0:00:01]} c2 {[%emt 0:01:42]} 28. Rd1 {[%emt 0:00:11]} c1=Q {[%emt 0:00:04]} 29. Rxc1 {[%emt 0:00:01]} Qxc1+ {[%emt 0:00:02]} 30. Kh2 {[%emt 0:00:00]} Qxb2 {[%emt 0:00:02]} 31. Qe3 {[%emt 0:00:04]} h6 {[%emt 0:00:25]} 32. Qb6 {[%emt 0:00:47]} Qxb3 {[%emt 0:00:07]} 33. Qxa6 {[%emt 0:00:04]} Qb2 {[%emt 0:00:02]} 34. Qb6 {[%emt 0:00:03]} b4 {[%emt 0:00:02]} 35. f3 {[%emt 0:00:51]} b3 {[%emt 0:00:26]} 36. Qb5 {[%emt 0:00:02]} Qc2 {[%emt 0:00:26]} 37. Nf1 {[%emt 0:00:05]} b2 {[%emt 0:00:02]} 38. Ne3 b1=Q {[%emt 0:00:11]} 39. Qxe5 {[%emt 0:00:07]} Qcb2 {[%emt 0:00:13]} 40. Qc5 {[%emt 0:00:13]} Q1c1 {[%emt 0:00:13]} 41. Qa7 {[%emt 0:00:24]} Qe5+ {[%emt 0:00:08]} 0-1

[Event "Wuerttemberg Rapid Teams 2024"]
[Site "B?blingen, Germany"]
[Date "2024.04.13"]
[Round "6.3"]
[White "Kocharin, Timur"]
[Black "Schuh, Karsten"]
[Result "1-0"]
[ECO "B32"]
[WhiteElo "2250"]
[BlackElo "2133"]
[Annotator "RC"]
[PlyCount "87"]
[EventDate "2024.04.13"]
[EventType "team-tourn"]
[SourceTitle "playchess.com"]
[Source "ChessBase"]
[SourceQuality "1"]
[TimeControl "900+5"]

1. e4 {[%emt 0:00:10]} c5 {[%emt 0:00:01]} 2. Nf3 {[%emt 0:00:01]} Nc6 {[%emt 0:00:01]} 3. d4 {[%emt 0:00:01]} cxd4 {[%emt 0:00:01]} 4. Nxd4 {[%emt 0:00:01]} Qc7 {[%emt 0:00:01]} 5. c4 {[%emt 0:00:15]} Nf6 {[%emt 0:00:03]} 6. Nc3 {[%emt 0:00:02]} e6 {[%emt 0:00:01]} 7. a3 {[%emt 0:00:01]} Nxd4 {[%emt 0:00:26]} 8. Qxd4 {[%emt 0:00:03]} Bc5 {[%emt 0:00:02]} 9. Qd3 {[%emt 0:00:12]} Ng4 {[%emt 0:00:59]} 10. Nd1 {[%emt 0:00:34]} O-O {[%emt 0:00:50]} 11. Qg3 {[%emt 0:00:39]} Qxg3 {[%emt 0:01:04]} 12. hxg3 {[%emt 0:00:01]} b6 {[%emt 0:00:05]} 13. f3 {[%emt 0:00:25]} Ne5 {[%emt 0:00:13]} 14. Bf4 {[%emt 0:00:35]} f6 {[%emt 0:01:07]} 15. b4 {[%emt 0:02:44]} Be7 {[%emt 0:01:07]} 16. Be2 {[%emt 0:01:04]} a5 {[%emt 0:00:34]} 17. b5 {[%emt 0:00:41]} Bb7 {[%emt 0:00:14]} 18. Be3 {[%emt 0:00:01]} Rac8 {[%emt 0:00:14]} 19. Bxb6 {[%emt 0:00:07]} Nxc4 {[%emt 0:00:03]} 20. Bxc4 {[%emt 0:00:16]} Rxc4 {[%emt 0:00:01]} 21. Ne3 {[%emt 0:01:44]} Ra4 {[%emt 0:03:56]} 22. Nc2 {[%emt 0:00:04]} Rb8 {[%emt 0:00:25]} 23. Bc7 {[%emt 0:00:20]} Rc8 {[%emt 0:00:08]} 24. b6 {[%emt 0:00:03]} Bc5 {[%emt 0:02:00]} 25. Kd2 {[%emt 0:00:11]} Rc4 {[%emt 0:00:43]} 26. Rhc1 {[%emt 0:00:07]} Kf7 {[%emt 0:00:34]} 27. a4 {[%emt 0:00:40]} Ke7 {[%emt 0:00:24]} 28. Ne3 {[%emt 0:00:06]} Rd4+ {[%emt 0:01:02]} 29. Ke1 {[%emt 0:00:29]} Bd6 {[%emt 0:00:08]} 30. Rab1 {[%emt 0:00:53]} Bb4+ {[%emt 0:00:36]} 31. Kf2 {[%emt 0:00:03]} d6 {[%emt 0:00:26]} 32. Rd1 {[%emt 0:00:25]} Rxd1 {[%emt 0:00:07]} 33. Rxd1 {[%emt 0:00:01]} Kd7 {[%emt 0:00:00]} 34. Nc4 {[%emt 0:00:03]} d5 {[%emt 0:00:04]} 35. exd5 {[%emt 0:00:03]} exd5 {[%emt 0:00:02]} 36. Ne3 {[%emt 0:00:07]} Ke6 {[%emt 0:00:00]} 37. Nc2 {[%emt 0:00:03]} Bc5+ {[%emt 0:00:02]} 38. Nd4+ {[%emt 0:00:01]} Kd7 {[%emt 0:00:03]} 39. Ke3 {[%emt 0:00:06]} Re8+ {[%emt 0:00:01]} 40. Kd3 {[%emt 0:00:01]} Ba6+ {[%emt 0:00:01]} 41. Nb5 {[%emt 0:00:01]} Kc6 {[%emt 0:00:01]} 42. Rc1 {[%emt 0:00:10]} Re3+ {[%emt 0:00:27]} 43. Kd2 {[%emt 0:00:01]} d4 {[%emt 0:00:02]} 44. Nxd4+ {[%emt 0:00:03]} 1-0

[Event "Wuerttemberg Rapid Teams 2024"]
[Site "B?blingen, Germany"]
[Date "2024.04.13"]
[Round "6.4"]
[White "Schuh, Bernd-Martin"]
[Black "Junesch, Gerhard"]
[Result "0-1"]
[ECO "D11"]
[WhiteElo "1976"]
[BlackElo "2267"]
[Annotator "RC"]
[PlyCount "86"]
[EventDate "2024.04.13"]
[EventType "team-tourn"]
[SourceTitle "playchess.com"]
[Source "ChessBase"]
[SourceQuality "1"]
[TimeControl "900+5"]

1. Nf3 {[%emt 0:01:02]} d5 2. g3 {[%emt 0:00:01]} c6 3. b3 {[%emt 0:00:00]} Bg4 {[%emt 0:00:15]} 4. Bg2 {[%emt 0:00:00]} Nd7 {[%emt 0:00:02]} 5. Bb2 {[%emt 0:00:00]} e6 {[%emt 0:00:06]} 6. c4 {[%emt 0:00:00]} Ngf6 {[%emt 0:00:10]} 7. O-O {[%emt 0:00:00]} Bd6 {[%emt 0:00:11]} 8. d4 {[%emt 0:00:00]} O-O {[%emt 0:00:19]} 9. Nc3 {[%emt 0:00:00]} h6 {[%emt 0:00:06]} 10. Rc1 {[%emt 0:00:14]} Qe7 {[%emt 0:00:04]} 11. Ne1 {[%emt 0:00:45]} Ba3 {[%emt 0:00:48]} 12. Bxa3 {[%emt 0:00:25]} Qxa3 {[%emt 0:00:01]} 13. f3 {[%emt 0:00:01]} Bh5 {[%emt 0:00:02]} 14. Nd3 {[%emt 0:00:32]} Bg6 {[%emt 0:00:36]} 15. Nf4 {[%emt 0:00:16]} Bh7 {[%emt 0:00:03]} 16. Re1 {[%emt 0:00:22]} dxc4 {[%emt 0:00:36]} 17. bxc4 {[%emt 0:00:05]} e5 {[%emt 0:00:03]} 18. dxe5 {[%emt 0:00:18]} Nxe5 {[%emt 0:00:01]} 19. Qd4 {[%emt 0:00:12]} Rfe8 {[%emt 0:00:28]} 20. c5 {[%emt 0:00:43]} Rad8 {[%emt 0:00:09]} 21. Qf2 {[%emt 0:00:42]} Nc4 {[%emt 0:01:50]} 22. e4 {[%emt 0:00:40]} Rd2 {[%emt 0:00:11]} 23. Nb1 {[%emt 0:00:33]} Rxf2 {[%emt 0:00:50]} 24. Nxa3 {[%emt 0:00:01]} Rxg2+ {[%emt 0:00:08]} 25. Kxg2 {[%emt 0:00:06]} Nxa3 {[%emt 0:00:02]} 26. Rc3 {[%emt 0:00:12]} Nb5 {[%emt 0:00:10]} 27. Rb3 {[%emt 0:00:17]} Nd7 {[%emt 0:00:39]} 28. Rc1 {[%emt 0:00:34]} Rb8 {[%emt 0:01:23]} 29. a4 {[%emt 0:00:20]} Nc7 {[%emt 0:00:02]} 30. Ne2 {[%emt 0:01:09]} Na6 {[%emt 0:00:24]} 31. Rbc3 {[%emt 0:00:16]} f5 {[%emt 0:00:13]} 32. exf5 {[%emt 0:00:05]} Bxf5 {[%emt 0:00:01]} 33. Nd4 {[%emt 0:00:03]} Bg6 {[%emt 0:00:08]} 34. Nb3 {[%emt 0:00:52]} Bf7 {[%emt 0:00:42]} 35. Na5 {[%emt 0:00:01]} Bd5 {[%emt 0:00:05]} 36. Kf2 {[%emt 0:00:18]} Kf7 {[%emt 0:00:01]} 37. Nc4 {[%emt 0:00:31]} Naxc5 {[%emt 0:01:21]} 38. Ne3 {[%emt 0:00:31]} Nxa4 {[%emt 0:00:07]} 39. Ra3 {[%emt 0:00:09]} b5 {[%emt 0:02:04]} 40. Nxd5 {[%emt 0:00:06]} cxd5 {[%emt 0:00:01]} 41. Rc7 {[%emt 0:00:07]} Ke6 {[%emt 0:00:03]} 42. Rxa7 {[%emt 0:00:10]} Nab6 {[%emt 0:00:25]} 43. R3a6 {[%emt 0:01:33]} b4 {[%emt 0:00:22]} 0-1